Workbook

Sheet MainMenu
B4: Main Menu
B6: Enter Codes
B8: Enter Sequence
B10: Make Matrix
B12: Make Diagram
B14: Mean responses
B22: More info | E22: This is a beta release of the Discussion Analysis Tool (DAT) for analyzing patterns in event sequences, and generating transitional state diagrams to visually analyze and identify patterns in social and human-computer interactions.
B24: Updates
I27: Version 1.94
B29: Copyright 2005-2011
B30: All Rights Reserved
B31: By Allan Jeong
E39: Software Updates:
E41: 6/9/09 Automaticallly draws four node diagrams if number of codes = 4
E42: 6/9/09 Prompts user when a code is missing in the DefineCodes sheet when running StartSeqAnal
E43: 6/11/09 Fixed DrawDiagram macro to work in Excel 2007
E44: 11/28/11 In MakeDiagram, added function to make historical diagram to reveal probability of event PRECEDING a given event
E45: 11 /28/11 v1.830In MakeMatrix, added prompt for user to select critical z-score and p-values to identify frequencies significantly above/below expected frequencies
E46: 11/29/11 v1.85 In MakeDiagram, added button to automatically copy & paste codes & cell frequencies for any selected group of values in the matrix
E47: 12/1/11 v1.94 In MakeDiagram, added function to place two diagrams side by side in a new worksheet to faciliate visual comparisons

Sheet EnterCodes
D5: Codes
C6: 1 | D6: ARG | F6: Enter your codes (up to 16 codes maximum) in the order in which you want them to appear in the probability matrix. Each code must consist of 1 to 5 characters in length.
C7: 2 | D7: BUT
C8: 3 | D8: EVID
C9: 4 | D9: EXPL
C10: 5
C11: 6
C12: 7
C13: 8
C14: 9
C15: 10
C16: 11
C17: 12
C18: 13
C19: 14
C20: 15
C21: 16
A42: =COUNTA(D6:D21) -> 4

Sheet EnterSequence
A1: ARG | B1: 2 | C1: . ARG MediaIsButAMereVehicle
A2: EVID | B2: 3 | C2: . . EVID MediaIsButAMereVehicle
A3: BUT | B3: 4 | C3: . . . BUT RelativityTheoryOldToo
A4: BUT | B4: 5 | C4: . . . . BUT RelativityTheoryOldToo
A5: BUT | B5: 3 | C5: . . BUT Whataboutemotions?
A6: EVID | B6: 3 | C6: . . EVID DistEdEffectiveAsFF
A7: BUT | B7: 3 | C7: . . BUT Mediaamerevehicle | G7: Steps for Entering Coded Events:
A8: EVID | B8: 3 | C8: . . EVID MooreConcurs | G8: 1) columns A, B & C
A9: EXPL | B9: 4 | C9: . . . EXPL MediaSelectionComesAfterInstructionalStrategy | G9: 2) Enter codes into Column A | L9: (more info)
A10: BUT | B10: 4 | C10: . . . BUT WellChosenEffective | G10: 3) Enter sequence or thread level in Column B | L10: (more info)
A11: BUT | B11: 5 | C11: . . . . BUT SupportingResearch | G11: 4) Optional: Enter event descriptions in Col. C | L11: (more info)
A12: BUT | B12: 3 | C12: . . BUT Mediaismorethenamerevehicle
A13: BUT | B13: 4 | C13: . . . BUT SupportingEvidence?
A14: BUT | B14: 3 | C14: . . BUT LearningNotSimplyAPassiveResponseToDeliveryMethod | G14: Optional Procedures for Processing Data from Labeled/Tagged Messages in Threaded Discussions:
A15: ARG | B15: 2 | C15: . ARG Standards for teaching
A16: BUT | B16: 3 | C16: . . BUT Clarification?
A17: ARG | B17: 2 | C17: . ARG MediaUnrelatedtoLearningObjectives
A18: BUT | B18: 3 | C18: . . BUT MediaUnrelatedtoLearningObjectives
A19: BUT | B19: 4 | C19: . . . BUT MediaSelection
A20: BUT | B20: 5 | C20: . . . . BUT MediaSelection
A21: EVID | B21: 3 | C21: . . EVID MethodNotMedia
A22: BUT | B22: 3 | C22: . . BUT MediaUnrelatedtoLearningObjectives
A23: EXPL | B23: 4 | C23: . . . EXPL Media'sContribution?
A24: BUT | B24: 5 | C24: . . . . BUT Media'sContribution?
A25: BUT | B25: 3 | C25: . . BUT MediaInteractsWithLearner
A26: ARG | B26: 2 | C26: . ARG TargetAudienceUsingDialUp
A27: BUT | B27: 3 | C27: . . BUT TargetAudienceUsingDialUp
A28: BUT | B28: 4 | C28: . . . BUT ItsNotCostEffective
A29: EXPL | B29: 4 | C29: . . . EXPL Conducting polls to identify interest in DE courses
A30: BUT | B30: 4 | C30: . . . BUT TargetAudienceUsingDialUp
A31: BUT | B31: 5 | C31: . . . . BUT TargetAudienceUsingDialUp

Sheet MakeMatrix
B1: Frequency matrix
C2: =B3 -> ARG | D2: =B4 -> BUT | E2: =B5 -> EVID | F2: =B6 -> EXPL | G2: =B7 -> 0 | H2: =B8 -> 0 | I2: =B9 -> 0 | J2: =B10 -> 0 | K2: =B11 -> 0 | L2: =B12 -> 0 | M2: =B13 -> 0 | N2: =B14 -> 0 | O2: =B15 -> 0 | P2: =B16 -> 0 | Q2: =B17 -> 0 | R2: =B18 -> 0 | S2: Replies | T2: No Replies | U2: Givens | V2: % replies | W2: % givens | Z2: =C2 -> ARG | AA2: BUT | AB2: EVID | AC2: EXPL | AD2: 0 | AE2: 0 | AF2: 0 | AG2: 0 | AH2: 0 | AI2: 0 | AJ2: 0 | AK2: 0 | AL2: 0 | AM2: 0 | AN2: 0 | AO2: 0 | AP2: =T2 -> No Replies
B3: =EnterCodes!D6 -> ARG | C3: 0 | D3: 9 | E3: 4 | F3: 0 | G3: 0 | H3: 0 | I3: 0 | J3: 0 | K3: 0 | L3: 0 | M3: 0 | N3: 0 | O3: 0 | P3: 0 | Q3: 0 | R3: 0 | S3: =SUM(C3:R3)+0.0001 -> 13.0001 | T3: 0 | U3: 4 | V3: =(S3-0.0001)/S$19 -> 0.4814511679 | W3: =U3/$U$19 -> 0.1290322581 | Y3: =B3 -> ARG | AA3: 5 7 12 14 16 18 22 25 27 | AB3: 2 6 8 21
B4: =EnterCodes!D7 -> BUT | C4: 0 | D4: 8 | E4: 0 | F4: 2 | G4: 0 | H4: 0 | I4: 0 | J4: 0 | K4: 0 | L4: 0 | M4: 0 | N4: 0 | O4: 0 | P4: 0 | Q4: 0 | R4: 0 | S4: 10.0001 | T4: 12 | U4: 20 | V4: 0.3703470522 | W4: 0.6451612903 | Y4: BUT | AA4: 4 11 13 19 20 28 30 31 | AC4: 23 29 | AP4: 4 5 7 11 13 14 16 20 24 25 2831
B5: =EnterCodes!D8 -> EVID | C5: 0 | D5: 2 | E5: 0 | F5: 1 | G5: 0 | H5: 0 | I5: 0 | J5: 0 | K5: 0 | L5: 0 | M5: 0 | N5: 0 | O5: 0 | P5: 0 | Q5: 0 | R5: 0 | S5: 3.0001 | T5: 2 | U5: 4 | V5: 0.1111041157 | W5: 0.1290322581 | Y5: EVID | AA5: 3 10 | AC5: 9 | AP5: 6 21
B6: =EnterCodes!D9 -> EXPL | C6: 0 | D6: 1 | E6: 0 | F6: 0 | G6: 0 | H6: 0 | I6: 0 | J6: 0 | K6: 0 | L6: 0 | M6: 0 | N6: 0 | O6: 0 | P6: 0 | Q6: 0 | R6: 0 | S6: 1.0001 | T6: 2 | U6: 3 | V6: 0.03703470522 | W6: 0.09677419355 | Y6: EXPL | AA6: 24 | AP6: 9 29
B7: =EnterCodes!D10 -> 0 | C7: 0 | D7: 0 | E7: 0 | F7: 0 | G7: 0 | H7: 0 | I7: 0 | J7: 0 | K7: 0 | L7: 0 | M7: 0 | N7: 0 | O7: 0 | P7: 0 | Q7: 0 | R7: 0 | S7: 0.0001 | T7: 0 | U7: 0 | V7: 0 | W7: 0 | Y7: 0
B8: =EnterCodes!D11 -> 0 | C8: 0 | D8: 0 | E8: 0 | F8: 0 | G8: 0 | H8: 0 | I8: 0 | J8: 0 | K8: 0 | L8: 0 | M8: 0 | N8: 0 | O8: 0 | P8: 0 | Q8: 0 | R8: 0 | S8: 0.0001 | T8: 0 | U8: 0 | V8: 0 | W8: 0 | Y8: 0
B9: =EnterCodes!D12 -> 0 | C9: 0 | D9: 0 | E9: 0 | F9: 0 | G9: 0 | H9: 0 | I9: 0 | J9: 0 | K9: 0 | L9: 0 | M9: 0 | N9: 0 | O9: 0 | P9: 0 | Q9: 0 | R9: 0 | S9: 0.0001 | T9: 0 | U9: 0 | V9: 0 | W9: 0 | Y9: 0
B10: =EnterCodes!D13 -> 0 | C10: 0 | D10: 0 | E10: 0 | F10: 0 | G10: 0 | H10: 0 | I10: 0 | J10: 0 | K10: 0 | L10: 0 | M10: 0 | N10: 0 | O10: 0 | P10: 0 | Q10: 0 | R10: 0 | S10: 0.0001 | T10: 0 | U10: 0 | V10: 0 | W10: 0 | Y10: 0
B11: =EnterCodes!D14 -> 0 | C11: 0 | D11: 0 | E11: 0 | F11: 0 | G11: 0 | H11: 0 | I11: 0 | J11: 0 | K11: 0 | L11: 0 | M11: 0 | N11: 0 | O11: 0 | P11: 0 | Q11: 0 | R11: 0 | S11: 0.0001 | T11: 0 | U11: 0 | V11: 0 | W11: 0 | Y11: 0
B12: =EnterCodes!D15 -> 0 | C12: 0 | D12: 0 | E12: 0 | F12: 0 | G12: 0 | H12: 0 | I12: 0 | J12: 0 | K12: 0 | L12: 0 | M12: 0 | N12: 0 | O12: 0 | P12: 0 | Q12: 0 | R12: 0 | S12: 0.0001 | T12: 0 | U12: 0 | V12: 0 | W12: 0 | Y12: 0
B13: =EnterCodes!D16 -> 0 | C13: 0 | D13: 0 | E13: 0 | F13: 0 | G13: 0 | H13: 0 | I13: 0 | J13: 0 | K13: 0 | L13: 0 | M13: 0 | N13: 0 | O13: 0 | P13: 0 | Q13: 0 | R13: 0 | S13: 0.0001 | T13: 0 | U13: 0 | V13: 0 | W13: 0 | Y13: 0
B14: =EnterCodes!D17 -> 0 | C14: 0 | D14: 0 | E14: 0 | F14: 0 | G14: 0 | H14: 0 | I14: 0 | J14: 0 | K14: 0 | L14: 0 | M14: 0 | N14: 0 | O14: 0 | P14: 0 | Q14: 0 | R14: 0 | S14: 0.0001 | T14: 0 | U14: 0 | V14: 0 | W14: 0 | Y14: 0
B15: =EnterCodes!D18 -> 0 | C15: 0 | D15: 0 | E15: 0 | F15: 0 | G15: 0 | H15: 0 | I15: 0 | J15: 0 | K15: 0 | L15: 0 | M15: 0 | N15: 0 | O15: 0 | P15: 0 | Q15: 0 | R15: 0 | S15: 0.0001 | T15: 0 | U15: 0 | V15: 0 | W15: 0 | Y15: 0
B16: =EnterCodes!D19 -> 0 | C16: 0 | D16: 0 | E16: 0 | F16: 0 | G16: 0 | H16: 0 | I16: 0 | J16: 0 | K16: 0 | L16: 0 | M16: 0 | N16: 0 | O16: 0 | P16: 0 | Q16: 0 | R16: 0 | S16: 0.0001 | T16: 0 | U16: 0 | V16: 0 | W16: 0 | Y16: 0
B17: =EnterCodes!D20 -> 0 | C17: 0 | D17: 0 | E17: 0 | F17: 0 | G17: 0 | H17: 0 | I17: 0 | J17: 0 | K17: 0 | L17: 0 | M17: 0 | N17: 0 | O17: 0 | P17: 0 | Q17: 0 | R17: 0 | S17: 0.0001 | T17: 0 | U17: 0 | V17: 0 | W17: 0 | Y17: 0
B18: =EnterCodes!D21 -> 0 | C18: 0 | D18: 0 | E18: 0 | F18: 0 | G18: 0 | H18: 0 | I18: 0 | J18: 0 | K18: 0 | L18: 0 | M18: 0 | N18: 0 | O18: 0 | P18: 0 | Q18: 0 | R18: 0 | S18: 0.0001 | T18: 0 | U18: 0 | V18: 0 | W18: 0 | Y18: 0
C19: =SUM(C3:C18)+0.0001 -> 0.0001 | D19: 20.0001 | E19: 4.0001 | F19: 3.0001 | G19: 0.0001 | H19: 0.0001 | I19: 0.0001 | J19: 0.0001 | K19: 0.0001 | L19: 0.0001 | M19: 0.0001 | N19: 0.0001 | O19: 0.0001 | P19: 0.0001 | Q19: 0.0001 | R19: 0.0001 | S19: =SUM(S3:S18)+0.0001 -> 27.0017 | T19: =SUM(T3:T18) -> 16 | U19: =SUM(U3:U18) -> 31 | Y19: Location of event pairs in CodeSequence sheet
Y20: Double click a cell to see complete list of locations for each observed pairing
B21: Transitional probabilities matrix
C22: =C2 -> ARG | D22: BUT | E22: EVID | F22: EXPL | G22: 0 | H22: 0 | I22: 0 | J22: 0 | K22: 0 | L22: 0 | M22: 0 | N22: 0 | O22: 0 | P22: 0 | Q22: 0 | R22: 0 | S22: Replies | T22: No Replies | U22: Givens | V22: Reply Rate
B23: =B3 -> ARG | C23: =C3/$S3 -> 0 | D23: 0.6923023669 | E23: 0.3076899408 | F23: 0 | G23: 0 | H23: 0 | I23: 0 | J23: 0 | K23: 0 | L23: 0 | M23: 0 | N23: 0 | O23: 0 | P23: 0 | Q23: 0 | R23: 0 | S23: =S3 -> 13.0001 | T23: =T3+0.0001 -> 0.0001 | U23: 4.0001 | V23: =(U23-T23)/U23 -> 0.9999750006
B24: BUT | C24: =C4/$S4 -> 0 | D24: 0.7999920001 | E24: 0 | F24: 0.199998 | G24: 0 | H24: 0 | I24: 0 | J24: 0 | K24: 0 | L24: 0 | M24: 0 | N24: 0 | O24: 0 | P24: 0 | Q24: 0 | R24: 0 | S24: 10.0001 | T24: 12.0001 | U24: 20.0001 | V24: 0.399998
B25: EVID | C25: =C5/$S5 -> 0 | D25: 0.6666444452 | E25: 0 | F25: 0.3333222226 | G25: 0 | H25: 0 | I25: 0 | J25: 0 | K25: 0 | L25: 0 | M25: 0 | N25: 0 | O25: 0 | P25: 0 | Q25: 0 | R25: 0 | S25: 3.0001 | T25: 2.0001 | U25: 4.0001 | V25: 0.4999875003
B26: EXPL | C26: =C6/$S6 -> 0 | D26: 0.99990001 | E26: 0 | F26: 0 | G26: 0 | H26: 0 | I26: 0 | J26: 0 | K26: 0 | L26: 0 | M26: 0 | N26: 0 | O26: 0 | P26: 0 | Q26: 0 | R26: 0 | S26: 1.0001 | T26: 2.0001 | U26: 3.0001 | V26: 0.3333222226
B27: 0 | C27: =C7/$S7 -> 0 | D27: 0 | E27: 0 | F27: 0 | G27: 0 | H27: 0 | I27: 0 | J27: 0 | K27: 0 | L27: 0 | M27: 0 | N27: 0 | O27: 0 | P27: 0 | Q27: 0 | R27: 0 | S27: 0.0001 | T27: 0.0001 | U27: 0.0001 | V27: 0
B28: 0 | C28: =C8/$S8 -> 0 | D28: 0 | E28: 0 | F28: 0 | G28: 0 | H28: 0 | I28: 0 | J28: 0 | K28: 0 | L28: 0 | M28: 0 | N28: 0 | O28: 0 | P28: 0 | Q28: 0 | R28: 0 | S28: 0.0001 | T28: 0.0001 | U28: 0.0001 | V28: 0
B29: 0 | C29: =C9/$S9 -> 0 | D29: 0 | E29: 0 | F29: 0 | G29: 0 | H29: 0 | I29: 0 | J29: 0 | K29: 0 | L29: 0 | M29: 0 | N29: 0 | O29: 0 | P29: 0 | Q29: 0 | R29: 0 | S29: 0.0001 | T29: 0.0001 | U29: 0.0001 | V29: 0
B30: 0 | C30: =C10/$S10 -> 0 | D30: 0 | E30: 0 | F30: 0 | G30: 0 | H30: 0 | I30: 0 | J30: 0 | K30: 0 | L30: 0 | M30: 0 | N30: 0 | O30: 0 | P30: 0 | Q30: 0 | R30: 0 | S30: 0.0001 | T30: =T10+0.0001 -> 0.0001 | U30: =U10+0.0001 -> 0.0001 | V30: 0
B31: 0 | C31: =C11/$S11 -> 0 | D31: 0 | E31: 0 | F31: 0 | G31: 0 | H31: 0 | I31: 0 | J31: 0 | K31: 0 | L31: 0 | M31: 0 | N31: 0 | O31: 0 | P31: 0 | Q31: 0 | R31: 0 | S31: 0.0001 | T31: 0.0001 | U31: 0.0001 | V31: 0
B32: 0 | C32: =C12/$S12 -> 0 | D32: 0 | E32: 0 | F32: 0 | G32: 0 | H32: 0 | I32: 0 | J32: 0 | K32: 0 | L32: 0 | M32: 0 | N32: 0 | O32: 0 | P32: 0 | Q32: 0 | R32: 0 | S32: 0.0001 | T32: 0.0001 | U32: 0.0001 | V32: 0 | Z32: Main Menu
B33: 0 | C33: =C13/$S13 -> 0 | D33: 0 | E33: 0 | F33: 0 | G33: 0 | H33: 0 | I33: 0 | J33: 0 | K33: 0 | L33: 0 | M33: 0 | N33: 0 | O33: 0 | P33: 0 | Q33: 0 | R33: 0 | S33: 0.0001 | T33: 0.0001 | U33: 0.0001 | V33: 0
B34: 0 | C34: =C14/$S14 -> 0 | D34: 0 | E34: 0 | F34: 0 | G34: 0 | H34: 0 | I34: 0 | J34: 0 | K34: 0 | L34: 0 | M34: 0 | N34: 0 | O34: 0 | P34: 0 | Q34: 0 | R34: 0 | S34: 0.0001 | T34: 0.0001 | U34: 0.0001 | V34: 0
B35: 0 | C35: =C15/$S15 -> 0 | D35: 0 | E35: 0 | F35: 0 | G35: 0 | H35: 0 | I35: 0 | J35: 0 | K35: 0 | L35: 0 | M35: 0 | N35: 0 | O35: 0 | P35: 0 | Q35: 0 | R35: 0 | S35: 0.0001 | T35: 0.0001 | U35: 0.0001 | V35: 0
B36: 0 | C36: =C16/$S16 -> 0 | D36: 0 | E36: 0 | F36: 0 | G36: 0 | H36: 0 | I36: 0 | J36: 0 | K36: 0 | L36: 0 | M36: 0 | N36: 0 | O36: 0 | P36: 0 | Q36: 0 | R36: 0 | S36: 0.0001 | T36: 0.0001 | U36: 0.0001 | V36: 0
B37: 0 | C37: =C17/$S17 -> 0 | D37: 0 | E37: 0 | F37: 0 | G37: 0 | H37: 0 | I37: 0 | J37: 0 | K37: 0 | L37: 0 | M37: 0 | N37: 0 | O37: 0 | P37: 0 | Q37: 0 | R37: 0 | S37: 0.0001 | T37: 0.0001 | U37: 0.0001 | V37: 0
B38: 0 | C38: =C18/$S18 -> 0 | D38: 0 | E38: 0 | F38: 0 | G38: 0 | H38: 0 | I38: 0 | J38: 0 | K38: 0 | L38: 0 | M38: 0 | N38: 0 | O38: 0 | P38: 0 | Q38: 0 | R38: 0 | S38: 0.0001 | T38: 0.0001 | U38: 0.0001 | V38: 0
C39: =C19 -> 0.0001 | D39: 20.0001 | E39: 4.0001 | F39: 3.0001 | G39: 0.0001 | H39: 0.0001 | I39: 0.0001 | J39: 0.0001 | K39: 0.0001 | L39: 0.0001 | M39: 0.0001 | N39: 0.0001 | O39: 0.0001 | P39: 0.0001 | Q39: 0.0001 | R39: 0.0001 | S39: 27.0017 | T39: =T19 -> 16 | U39: =U19 -> 31 | V39: =AVERAGE(V23:V38) -> 0.1395801702
B41: Z-Scores identify the probabilities that are higher/lower than expected
C42: =C2 -> ARG | D42: BUT | E42: EVID | F42: EXPL | G42: 0 | H42: 0 | I42: 0 | J42: 0 | K42: 0 | L42: 0 | M42: 0 | N42: 0 | O42: 0 | P42: 0 | Q42: 0 | R42: 0 | W42: Critical z-score | Y42: 1.64 | Z42: at p < .05
B43: =B3 -> ARG | C43: =(C3-((C$19*$S3)/$S$19))/SQRT(((C$19*$S3)/$S$19)*(1-$S3/$S$19)*(1 - C$19/$S$19)) -> -0.009635745425 | D43: =(D3-D$19*$S3/$S$19)/SQRT((D$19*$S3/$S$19)*(1-$S3/$S$19)*(1-D$19/$S$19)) -> -0.5529182122 | E43: 2.248777583 | F43: -1.770222416 | G43: -0.009635745425 | H43: -0.009635745425 | I43: -0.009635745425 | J43: -0.009635745425 | K43: -0.009635745425 | L43: -0.009635745425 | M43: -0.009635745425 | N43: -0.009635745425 | O43: -0.009635745425 | P43: -0.009635745425 | Q43: -0.009635745425 | R43: -0.009635745425 | S43: =S23 -> 13.0001 | V43: Z-score = 2.32 at .01 significance
B44: BUT | C44: -0.007669341537 | D44: =(D4-D$19*$S4/$S$19)/SQRT((D$19*$S4/$S$19)*(1-$S4/$S$19)*(1-D$19/$S$19)) -> 0.5391894189 | E44: -1.661916613 | F44: 1.127222798 | G44: -0.007669341537 | H44: -0.007669341537 | I44: -0.007669341537 | J44: -0.007669341537 | K44: -0.007669341537 | L44: -0.007669341537 | M44: -0.007669341537 | N44: -0.007669341537 | O44: -0.007669341537 | P44: -0.007669341537 | Q44: -0.007669341537 | R44: -0.007669341537 | S44: 10.0001 | V44: Z-score = 1.64 at .05 significance
B45: EVID | C45: -0.003535481531 | D45: =(D5-D$19*$S5/$S$19)/SQRT((D$19*$S5/$S$19)*(1-$S5/$S$19)*(1-D$19/$S$19)) -> -0.3104305706 | E45: -0.7661251571 | F45: 1.299028482 | G45: -0.003535481531 | H45: -0.003535481531 | I45: -0.003535481531 | J45: -0.003535481531 | K45: -0.003535481531 | L45: -0.003535481531 | M45: -0.003535481531 | N45: -0.003535481531 | O45: -0.003535481531 | P45: -0.003535481531 | Q45: -0.003535481531 | R45: -0.003535481531 | S45: 3.0001 | V45: Z-score = 1.28 at .10 significance
B46: EXPL | C46: -0.001961202695 | D46: =(D6-D$19*$S6/$S$19)/SQRT((D$19*$S6/$S$19)*(1-$S6/$S$19)*(1-D$19/$S$19)) -> 0.6027431647 | E46: -0.4249850296 | F46: -0.3603006119 | G46: -0.001961202695 | H46: -0.001961202695 | I46: -0.001961202695 | J46: -0.001961202695 | K46: -0.001961202695 | L46: -0.001961202695 | M46: -0.001961202695 | N46: -0.001961202695 | O46: -0.001961202695 | P46: -0.001961202695 | Q46: -0.001961202695 | R46: -0.001961202695 | S46: 1.0001
B47: 0 | C47: -1.924447441e-05 | D47: =(D7-D$19*$S7/$S$19)/SQRT((D$19*$S7/$S$19)*(1-$S7/$S$19)*(1-D$19/$S$19)) -> -0.01690122719 | E47: -0.004170203084 | F47: -0.003535481531 | G47: -1.924447441e-05 | H47: -1.924447441e-05 | I47: -1.924447441e-05 | J47: -1.924447441e-05 | K47: -1.924447441e-05 | L47: -1.924447441e-05 | M47: -1.924447441e-05 | N47: -1.924447441e-05 | O47: -1.924447441e-05 | P47: -1.924447441e-05 | Q47: -1.924447441e-05 | R47: -1.924447441e-05 | S47: 0.0001 | U47: p108-109 Bakeman & Gottman (1997)
B48: 0 | C48: -1.924447441e-05 | D48: =(D8-D$19*$S8/$S$19)/SQRT((D$19*$S8/$S$19)*(1-$S8/$S$19)*(1-D$19/$S$19)) -> -0.01690122719 | E48: -0.004170203084 | F48: -0.003535481531 | G48: -1.924447441e-05 | H48: -1.924447441e-05 | I48: -1.924447441e-05 | J48: -1.924447441e-05 | K48: -1.924447441e-05 | L48: -1.924447441e-05 | M48: -1.924447441e-05 | N48: -1.924447441e-05 | O48: -1.924447441e-05 | P48: -1.924447441e-05 | Q48: -1.924447441e-05 | R48: -1.924447441e-05 | S48: 0.0001 | U48: where consec. codes may repeat
B49: 0 | C49: -1.924447441e-05 | D49: =(D9-D$19*$S9/$S$19)/SQRT((D$19*$S9/$S$19)*(1-$S9/$S$19)*(1-D$19/$S$19)) -> -0.01690122719 | E49: -0.004170203084 | F49: -0.003535481531 | G49: -1.924447441e-05 | H49: -1.924447441e-05 | I49: -1.924447441e-05 | J49: -1.924447441e-05 | K49: -1.924447441e-05 | L49: -1.924447441e-05 | M49: -1.924447441e-05 | N49: -1.924447441e-05 | O49: -1.924447441e-05 | P49: -1.924447441e-05 | Q49: -1.924447441e-05 | R49: -1.924447441e-05 | S49: 0.0001
B50: 0 | C50: -1.924447441e-05 | D50: =(D10-D$19*$S10/$S$19)/SQRT((D$19*$S10/$S$19)*(1-$S10/$S$19)*(1-D$19/$S$19)) -> -0.01690122719 | E50: -0.004170203084 | F50: -0.003535481531 | G50: -1.924447441e-05 | H50: -1.924447441e-05 | I50: -1.924447441e-05 | J50: -1.924447441e-05 | K50: -1.924447441e-05 | L50: -1.924447441e-05 | M50: -1.924447441e-05 | N50: -1.924447441e-05 | O50: -1.924447441e-05 | P50: -1.924447441e-05 | Q50: -1.924447441e-05 | R50: -1.924447441e-05 | S50: 0.0001
B51: 0 | C51: -1.924447441e-05 | D51: =(D11-D$19*$S11/$S$19)/SQRT((D$19*$S11/$S$19)*(1-$S11/$S$19)*(1-D$19/$S$19)) -> -0.01690122719 | E51: -0.004170203084 | F51: -0.003535481531 | G51: -1.924447441e-05 | H51: -1.924447441e-05 | I51: -1.924447441e-05 | J51: -1.924447441e-05 | K51: -1.924447441e-05 | L51: -1.924447441e-05 | M51: -1.924447441e-05 | N51: -1.924447441e-05 | O51: -1.924447441e-05 | P51: -1.924447441e-05 | Q51: -1.924447441e-05 | R51: -1.924447441e-05 | S51: 0.0001
B52: 0 | C52: -1.924447441e-05 | D52: =(D12-D$19*$S12/$S$19)/SQRT((D$19*$S12/$S$19)*(1-$S12/$S$19)*(1-D$19/$S$19)) -> -0.01690122719 | E52: -0.004170203084 | F52: -0.003535481531 | G52: -1.924447441e-05 | H52: -1.924447441e-05 | I52: -1.924447441e-05 | J52: -1.924447441e-05 | K52: -1.924447441e-05 | L52: -1.924447441e-05 | M52: -1.924447441e-05 | N52: -1.924447441e-05 | O52: -1.924447441e-05 | P52: -1.924447441e-05 | Q52: -1.924447441e-05 | R52: -1.924447441e-05 | S52: 0.0001
B53: 0 | C53: -1.924447441e-05 | D53: =(D13-D$19*$S13/$S$19)/SQRT((D$19*$S13/$S$19)*(1-$S13/$S$19)*(1-D$19/$S$19)) -> -0.01690122719 | E53: -0.004170203084 | F53: -0.003535481531 | G53: -1.924447441e-05 | H53: -1.924447441e-05 | I53: -1.924447441e-05 | J53: -1.924447441e-05 | K53: -1.924447441e-05 | L53: -1.924447441e-05 | M53: -1.924447441e-05 | N53: -1.924447441e-05 | O53: -1.924447441e-05 | P53: -1.924447441e-05 | Q53: -1.924447441e-05 | R53: -1.924447441e-05 | S53: 0.0001
B54: 0 | C54: -1.924447441e-05 | D54: =(D14-D$19*$S14/$S$19)/SQRT((D$19*$S14/$S$19)*(1-$S14/$S$19)*(1-D$19/$S$19)) -> -0.01690122719 | E54: -0.004170203084 | F54: -0.003535481531 | G54: -1.924447441e-05 | H54: -1.924447441e-05 | I54: -1.924447441e-05 | J54: -1.924447441e-05 | K54: -1.924447441e-05 | L54: -1.924447441e-05 | M54: -1.924447441e-05 | N54: -1.924447441e-05 | O54: -1.924447441e-05 | P54: -1.924447441e-05 | Q54: -1.924447441e-05 | R54: -1.924447441e-05 | S54: 0.0001
B55: 0 | C55: -1.924447441e-05 | D55: =(D15-D$19*$S15/$S$19)/SQRT((D$19*$S15/$S$19)*(1-$S15/$S$19)*(1-D$19/$S$19)) -> -0.01690122719 | E55: -0.004170203084 | F55: -0.003535481531 | G55: -1.924447441e-05 | H55: -1.924447441e-05 | I55: -1.924447441e-05 | J55: -1.924447441e-05 | K55: -1.924447441e-05 | L55: -1.924447441e-05 | M55: -1.924447441e-05 | N55: -1.924447441e-05 | O55: -1.924447441e-05 | P55: -1.924447441e-05 | Q55: -1.924447441e-05 | R55: -1.924447441e-05 | S55: 0.0001
B56: 0 | C56: -1.924447441e-05 | D56: =(D16-D$19*$S16/$S$19)/SQRT((D$19*$S16/$S$19)*(1-$S16/$S$19)*(1-D$19/$S$19)) -> -0.01690122719 | E56: -0.004170203084 | F56: -0.003535481531 | G56: -1.924447441e-05 | H56: -1.924447441e-05 | I56: -1.924447441e-05 | J56: -1.924447441e-05 | K56: -1.924447441e-05 | L56: -1.924447441e-05 | M56: -1.924447441e-05 | N56: -1.924447441e-05 | O56: -1.924447441e-05 | P56: -1.924447441e-05 | Q56: -1.924447441e-05 | R56: -1.924447441e-05 | S56: 0.0001
B57: 0 | C57: -1.924447441e-05 | D57: =(D17-D$19*$S17/$S$19)/SQRT((D$19*$S17/$S$19)*(1-$S17/$S$19)*(1-D$19/$S$19)) -> -0.01690122719 | E57: -0.004170203084 | F57: -0.003535481531 | G57: -1.924447441e-05 | H57: -1.924447441e-05 | I57: -1.924447441e-05 | J57: -1.924447441e-05 | K57: -1.924447441e-05 | L57: -1.924447441e-05 | M57: -1.924447441e-05 | N57: -1.924447441e-05 | O57: -1.924447441e-05 | P57: -1.924447441e-05 | Q57: -1.924447441e-05 | R57: -1.924447441e-05 | S57: 0.0001
B58: 0 | C58: -1.924447441e-05 | D58: =(D18-D$19*$S18/$S$19)/SQRT((D$19*$S18/$S$19)*(1-$S18/$S$19)*(1-D$19/$S$19)) -> -0.01690122719 | E58: -0.004170203084 | F58: -0.003535481531 | G58: -1.924447441e-05 | H58: -1.924447441e-05 | I58: -1.924447441e-05 | J58: -1.924447441e-05 | K58: -1.924447441e-05 | L58: -1.924447441e-05 | M58: -1.924447441e-05 | N58: -1.924447441e-05 | O58: -1.924447441e-05 | P58: -1.924447441e-05 | Q58: -1.924447441e-05 | R58: -1.924447441e-05 | S58: 0.0001
C59: =C39 -> 0.0001 | D59: 20.0001 | E59: 4.0001 | F59: 3.0001 | G59: 0.0001 | H59: 0.0001 | I59: 0.0001 | J59: 0.0001 | K59: 0.0001 | L59: 0.0001 | M59: 0.0001 | N59: 0.0001 | O59: 0.0001 | P59: 0.0001 | Q59: 0.0001 | R59: 0.0001 | S59: 27.0017
C63: =$S3/COUNTA($C$2:$R$2) -> 0.81250625 | D63: 0.81250625 | E63: 0.81250625 | F63: 0.81250625 | G63: 0.81250625 | H63: 0.81250625 | I63: 0.81250625 | J63: 0.81250625 | K63: 0.81250625 | L63: 0.81250625 | M63: 0.81250625 | R63: =$S3/COUNTA($C$2:$R$2) -> 0.81250625
C64: =$S4/COUNTA($C$2:$R$2) -> 0.62500625 | D64: 0.62500625 | E64: 0.62500625 | F64: 0.62500625 | G64: 0.62500625 | H64: 0.62500625 | I64: 0.62500625 | J64: 0.62500625 | K64: 0.62500625 | L64: 0.62500625 | M64: 0.62500625 | R64: 0.62500625
C65: =$S5/COUNTA($C$2:$R$2) -> 0.18750625 | D65: 0.18750625 | E65: 0.18750625 | F65: 0.18750625 | G65: 0.18750625 | H65: 0.18750625 | I65: 0.18750625 | J65: 0.18750625 | K65: 0.18750625 | L65: 0.18750625 | M65: 0.18750625 | R65: 0.18750625
C66: =$S6/COUNTA($C$2:$R$2) -> 0.06250625 | D66: 0.06250625 | E66: 0.06250625 | F66: 0.06250625 | G66: 0.06250625 | H66: 0.06250625 | I66: 0.06250625 | J66: 0.06250625 | K66: 0.06250625 | L66: 0.06250625 | M66: 0.06250625 | R66: 0.06250625
C67: =$S7/COUNTA($C$2:$R$2) -> 6.25e-06 | D67: 6.25e-06 | E67: 6.25e-06 | F67: 6.25e-06 | G67: 6.25e-06 | H67: 6.25e-06 | I67: 6.25e-06 | J67: 6.25e-06 | K67: 6.25e-06 | L67: 6.25e-06 | M67: 6.25e-06 | R67: 6.25e-06
C68: =$S8/COUNTA($C$2:$R$2) -> 6.25e-06 | D68: 6.25e-06 | E68: 6.25e-06 | F68: 6.25e-06 | G68: 6.25e-06 | H68: 6.25e-06 | I68: 6.25e-06 | J68: 6.25e-06 | K68: 6.25e-06 | L68: 6.25e-06 | M68: 6.25e-06 | R68: 6.25e-06
C69: =$S9/COUNTA($C$2:$R$2) -> 6.25e-06 | D69: 6.25e-06 | E69: 6.25e-06 | F69: 6.25e-06 | G69: 6.25e-06 | H69: 6.25e-06 | I69: 6.25e-06 | J69: 6.25e-06 | K69: 6.25e-06 | L69: 6.25e-06 | M69: 6.25e-06 | R69: 6.25e-06
C70: =$S10/COUNTA($C$2:$R$2) -> 6.25e-06 | D70: 6.25e-06 | E70: 6.25e-06 | F70: 6.25e-06 | G70: 6.25e-06 | H70: 6.25e-06 | I70: 6.25e-06 | J70: 6.25e-06 | K70: 6.25e-06 | L70: 6.25e-06 | M70: 6.25e-06 | R70: 6.25e-06
C71: =$S11/COUNTA($C$2:$R$2) -> 6.25e-06 | D71: 6.25e-06 | E71: 6.25e-06 | F71: 6.25e-06 | G71: 6.25e-06 | H71: 6.25e-06 | I71: 6.25e-06 | J71: 6.25e-06 | K71: 6.25e-06 | L71: 6.25e-06 | M71: 6.25e-06 | R71: 6.25e-06
C72: =$S12/COUNTA($C$2:$R$2) -> 6.25e-06 | D72: 6.25e-06 | E72: 6.25e-06 | F72: 6.25e-06 | G72: 6.25e-06 | H72: 6.25e-06 | I72: 6.25e-06 | J72: 6.25e-06 | K72: 6.25e-06 | L72: 6.25e-06 | M72: 6.25e-06 | R72: 6.25e-06
C73: =$S13/COUNTA($C$2:$R$2) -> 6.25e-06 | D73: 6.25e-06 | E73: 6.25e-06 | F73: 6.25e-06 | G73: 6.25e-06 | H73: 6.25e-06 | I73: 6.25e-06 | J73: 6.25e-06 | K73: 6.25e-06 | L73: 6.25e-06 | M73: 6.25e-06 | R73: 6.25e-06
C74: =$S18/COUNTA($C$2:$R$2) -> 6.25e-06 | D74: 6.25e-06 | E74: 6.25e-06 | F74: 6.25e-06 | G74: 6.25e-06 | H74: 6.25e-06 | I74: 6.25e-06 | J74: 6.25e-06 | K74: 6.25e-06 | L74: 6.25e-06 | M74: 6.25e-06 | R74: =$S18/COUNTA($C$2:$R$2) -> 6.25e-06

Sheet MakeDiagram
B1: Frequency Matrix | J1: Transitional Probability Matrix | R1: Historical Probability Matrix
C2: =B3 -> ARG | D2: =B4 -> BUT | E2: =B5 -> EVID | F2: =B6 -> EXPL | G2: =B7 -> 0 | H2: =B8 -> 0 | K2: =C2 -> ARG | L2: BUT | M2: EVID | N2: EXPL | O2: 0 | P2: 0 | S2: =C2 -> ARG | T2: BUT | U2: EVID | V2: EXPL | W2: 0 | X2: 0 | Z2: Givens
B3: ARG | C3: 0 | D3: 9 | E3: 4 | F3: 0 | I3: =SUM(C3:H3)+0.0001 -> 13.0001 | J3: =B3 -> ARG | K3: =C3/$I3 -> 0 | L3: 0.6923023669 | M3: 0.3076899408 | N3: 0 | O3: 0 | P3: 0 | R3: =B3 -> ARG | S3: =C3/C$9 -> 0 | T3: 0.44999775 | U3: 0.9999750006 | V3: 0 | W3: 0 | X3: 0 | Z3: 4
B4: BUT | C4: 0 | D4: 8 | E4: 0 | F4: 2 | I4: =SUM(C4:H4)+0.0001 -> 10.0001 | J4: BUT | K4: 0 | L4: 0.7999920001 | M4: 0 | N4: 0.199998 | O4: 0 | P4: 0 | R4: BUT | S4: 0 | T4: 0.399998 | U4: 0 | V4: 0.6666444452 | W4: 0 | X4: 0 | Z4: 20
B5: EVID | C5: 0 | D5: 2 | E5: 0 | F5: 1 | I5: 3.0001 | J5: EVID | K5: 0 | L5: 0.6666444452 | M5: 0 | N5: 0.3333222226 | O5: 0 | P5: 0 | R5: EVID | S5: 0 | T5: 0.0999995 | U5: 0 | V5: 0.3333222226 | W5: 0 | X5: 0 | Z5: 4
B6: EXPL | C6: 0 | D6: 1 | E6: 0 | F6: 0 | I6: 1.0001 | J6: EXPL | K6: 0 | L6: 0.99990001 | M6: 0 | N6: 0 | O6: 0 | P6: 0 | R6: EXPL | S6: 0 | T6: 0.04999975 | U6: 0 | V6: 0 | W6: 0 | X6: 0 | Z6: 3
I7: 0.0001 | J7: 0 | K7: 0 | L7: 0 | M7: 0 | N7: 0 | O7: 0 | P7: 0 | R7: 0 | S7: 0 | T7: 0 | U7: 0 | V7: 0 | W7: 0 | X7: 0
I8: 0.0001 | J8: 0 | K8: 0 | L8: 0 | M8: 0 | N8: 0 | O8: 0 | P8: 0 | R8: 0 | S8: 0 | T8: 0 | U8: 0 | V8: 0 | W8: 0 | X8: 0
B9: =COUNTA(B3:B8) -> 4 | C9: =SUM(C3:C8)+0.0001 -> 0.0001 | D9: 20.0001 | E9: 4.0001 | F9: 3.0001 | G9: 0.0001 | H9: 0.0001
C10: Enter values only in the cells shaded in blue | K10: Probability of events following each given event | S10: Probability of events PRECEDING each given event
C14: Instructions:
C16: 1) In the frequency matrix above, enter up to six codes down the first column
C18: 2) Enter the corresponding cell frequencies for the selected codes from the matrix sheet
C20: 3) In order to tease out possible patterns in the diagrams, you may want to vary the density of the arrows in the diagram,
C21: by increasing or decreasing the multiplier.
C23: Multiplier = | F23: 10 | H23: default value = 10
C26: 4) Click buttons below the matrices the make a transitional state diagram OR a historical state diagram.
C28: 5) Place two diagrams side by side
C30: ** At this time, the DAT program only draws state diagrams for six or less event codes/categories
D86: =COUNTA(B3:B8) -> 4

Sheet ResponseScores
A1: ARG-->BUTBUTBUTBUT | B1: 4 | C1: 1 | F1: This page tallies the number of replies elicited by each "given" type of message to obain the raw scores needed to use any statistical program (e.g., SPSSX, Systat) to compute, for example, the mean number of challenges posted in reply to each argument, and compare the means across multiple factors or groups. You can repeat this process for any number of given-target message pairings.
A2: ARG-->BUT | B2: 1 | C2: 1
A3: ARG-->BUTBUTBUT | B3: 3 | C3: 1
A4: ARG-->BUT | B4: 1 | C4: 1
A5: ARG-->EVIDEVIDEVID | B5: 3 | C5: 1
A6: ARG--> | B6: 0 | C6: 1 | F6: COMPLETE THE FOLLOWING STEPS:
A7: ARG-->EVID | B7: 1 | C7: 1 | F7: 1) | G7: Enter a code to select a "Given" message category from list of Defined Codes.
A8: ARG--> | B8: 0 | C8: 1 | F8: 2) | G8: Enter a code to select a "Target" message category. Click column for more details.
A9: ARG--> | B9: 0 | C9: 1 | F9: 3) | G9: If you are planning to do an one factor ANOVA, enter group number in Factor1 column.
A10: ARG--> | B10: 0 | C10: 1 | G10: For a two-factor ANOVA, enter group numbers in both Factor 1 & 2 columns.
A11: ARG--> | B11: 0 | C11: 1 | F11: 4) | G11: Click button below to tally the number of replies elicited per given message.
A12: ARG--> | B12: 0 | C12: 1
A13: BUT-->BUT | B13: 1 | C13: 2 | F13: Tallies | G13: Given | H13: Target | I13: Factor1 | J13: Factor2
A14: BUT--> | B14: 0 | C14: 2 | F14: 1) | G14: ARG | H14: BUT | I14: 1 | M14: Mean number of responses = | N14: =AVERAGE(B:B) -> 0.3194444444
A15: BUT--> | B15: 0 | C15: 2 | F15: 2) | G15: ARG | H15: EVID | I15: 1 | M15: Standard deviation = | N15: =STDEV(B:B) -> 0.7659365783
A16: BUT--> | B16: 0 | C16: 2 | F16: 3) | G16: ARG | H16: EXPL | I16: 1 | M16: n = | N16: =COUNTA(B:B) -> 72
A17: BUT-->BUT | B17: 1 | C17: 2 | F17: 4) | G17: BUT | H17: BUT | I17: 2
A18: BUT--> | B18: 0 | C18: 2 | F18: 5) | G18: BUT | H18: EVID | I18: 2
A19: BUT-->BUT | B19: 1 | C19: 2 | F19: 6) | G19: BUT | H19: EXPL | I19: 2
A20: BUT--> | B20: 0 | C20: 2 | F20: 7)
A21: BUT--> | B21: 0 | C21: 2 | F21: 8)
A22: BUT--> | B22: 0 | C22: 2 | F22: 9)
A23: BUT-->BUT | B23: 1 | C23: 2 | F23: 10)
A24: BUT-->BUT | B24: 1 | C24: 2 | F24: 11)
A25: BUT--> | B25: 0 | C25: 2 | F25: 12)
A26: BUT--> | B26: 0 | C26: 2 | F26: 13)
A27: BUT--> | B27: 0 | C27: 2 | F27: 14)
A28: BUT--> | B28: 0 | C28: 2 | F28: 15)
A29: BUT-->BUTBUT | B29: 2 | C29: 2 | F29: .
A30: BUT--> | B30: 0 | C30: 2 | F30: .
A31: BUT-->BUT | B31: 1 | C31: 2 | F31: .
A32: BUT--> | B32: 0 | C32: 2 | F32: .
A33: BUT--> | B33: 0 | C33: 2 | F33: .
A34: BUT--> | B34: 0 | C34: 2 | F34: .
A35: BUT--> | B35: 0 | C35: 2 | F35: .
A36: BUT--> | B36: 0 | C36: 2
A37: BUT--> | B37: 0 | C37: 2
A38: BUT--> | B38: 0 | C38: 2
A39: BUT--> | B39: 0 | C39: 2
A40: BUT--> | B40: 0 | C40: 2
A41: BUT--> | B41: 0 | C41: 2
A42: BUT--> | B42: 0 | C42: 2
A43: BUT--> | B43: 0 | C43: 2
A44: BUT--> | B44: 0 | C44: 2
A45: BUT--> | B45: 0 | C45: 2
A46: BUT--> | B46: 0 | C46: 2
A47: BUT--> | B47: 0 | C47: 2
A48: BUT--> | B48: 0 | C48: 2
A49: BUT--> | B49: 0 | C49: 2
A50: BUT--> | B50: 0 | C50: 2
A51: BUT--> | B51: 0 | C51: 2
A52: BUT--> | B52: 0 | C52: 2
A53: BUT--> | B53: 0 | C53: 2
A54: BUT--> | B54: 0 | C54: 2
A55: BUT--> | B55: 0 | C55: 2
A56: BUT--> | B56: 0 | C56: 2
A57: BUT--> | B57: 0 | C57: 2
A58: BUT--> | B58: 0 | C58: 2
A59: BUT--> | B59: 0 | C59: 2
A60: BUT--> | B60: 0 | C60: 2
A61: BUT--> | B61: 0 | C61: 2
A62: BUT--> | B62: 0 | C62: 2
A63: BUT--> | B63: 0 | C63: 2
A64: BUT--> | B64: 0 | C64: 2
A65: BUT--> | B65: 0 | C65: 2
A66: BUT-->EXPL | B66: 1 | C66: 2
A67: BUT--> | B67: 0 | C67: 2
A68: BUT--> | B68: 0 | C68: 2
A69: BUT-->EXPL | B69: 1 | C69: 2
A70: BUT--> | B70: 0 | C70: 2
A71: BUT--> | B71: 0 | C71: 2
A72: BUT--> | B72: 0 | C72: 2

Sheet 1
D28: TRANSITIONAL State Diagram

Sheet 2
D28: HISTORICAL State Diagram
